Cogmind - Beta 13 @@@ ROGUE MODE // 2024.04.13 @ 19:48:13 // Halloween2020/ForbiddenLore Player: Bulbasornado Result: Self-destructed Performance ------------- Evolutions (1) 500 Regions Visited (3) 600 Robots Destroyed (24) 120 Value Destroyed (712) 712 Prototype IDs (4) 80 Alien Tech Used (0) 0 Bonus (0) 0 TOTAL SCORE: 2012 Bonus ------- None Cogmind --------- Core Integrity 336/400 Matter 300/300 Energy 100/100 System Corruption 0% Temperature Cool (0) Movement Rolling (125) Ox3 Location -9/Materials Parts ------- > --- POWER (1) -------- (None) > --- PROPULSION (2) --- Wheel > --- UTILITY (4) ------ Improved Heat Sink Large Storage Unit Targeting Computer Medium Armor Plating > --- WEAPON (2) ------- Beam Rifle Beam Cannon > --- INVENTORY (15) --- Ion Engine Wheel Wheel Improved Heat Sink Medium Matter Pod (100) Experimental Sensor Array Weapon Shielding Medium Armor Plating Shield Generator Beam Rifle Beam Rifle Particle Gun Grenade Launcher Datajack Datajack Peak State ------------ > --- POWER ------------ Ion Engine > --- PROPULSION ------- Wheel Wheel > --- UTILITY ---------- Large Storage Unit Experimental Sensor Array Shield Generator > --- WEAPON ----------- Beam Rifle Beam Cannon > --- INVENTORY -------- Ion Engine Wheel Wheel Improved Heat Sink Medium Matter Pod Targeting Computer Weapon Shielding Shield Generator Beam Rifle Particle Gun Grenade Launcher Datajack Datajack [Rating: 19] Favorites ----------- Power Light Ion Engine Engine Light Ion Engine Propulsion Wheel Wheel Wheel Utility Small Storage Unit Device Seismic Detector Storage Small Storage Unit Processor Targeting Computer Protection Light Armor Plating Weapon Medium Laser Energy Gun Medium Laser Energy Cannon Beam Cannon Ballistic Gun Light Assault Rifle Build | -11 -10 -10 -9 ------- Run | Yrd Mat Min Mat Slots Evolved 2 | . . . 2 Power . | . . . . Propulsion . | . . . . Utility 2 | . . . 2 Weapon . | . . . . Parts Attached 26 | 7 12 1 6 Power 3 | 1 2 . . Engine 3 | 1 2 . . Core . | . . . . Reactor . | . . . . Propulsion 5 | 2 2 1 . Treads . | . . . . Leg . | . . . . Wheel 5 | 2 2 1 . Hover . | . . . . Flight . | . . . . Utility 13 | 2 6 . 5 Device 7 | 1 3 . 3 Storage 2 | 1 1 . . Processor 1 | . . . 1 Hackware . | . . . . Protection 3 | . 2 . 1 Artifact . | . . . . Weapon 5 | 2 2 . 1 Energy Gun 3 | 1 1 . 1 Energy Cannon 1 | . 1 . . Ballistic Gun 1 | 1 . . . Ballistic Cannon . | . . . . Launcher . | . . . . Special Weapon . | . . . . Impact Weapon . | . . . . Slashing Weapon . | . . . . Piercing Weapon . | . . . . Special Melee Weapon . | . . . . Unidentified Prototypes 1 | . . . 1 Parts Lost 7 | . 3 1 3 Power 1 | . . . 1 Propulsion 3 | . 1 1 1 Utility 2 | . 1 . 1 Weapon 1 | . 1 . . Highest Loss Streak 2 | . 2 1 2 To Critical Strikes . | . . . . Average Slot Usage (%) 99 | . 99 100 96 Engine 13 | . 14 14 11 Wheel 27 | . 27 28 22 Device 9 | . 6 14 17 Storage 13 | . 14 14 11 Processor 1 | . . . 10 Protection 4 | . 6 . 3 Energy Gun 13 | . 14 14 11 Energy Cannon 10 | . 9 14 11 Ballistic Gun 2 | . 4 . . Naked Turns . | . . . . Heaviest Build 39 | 12 34 33 39 Greatest Support 20 | 20 20 20 20 Greatest Overweight (x) 3 | . 1 3 3 Average Overweight (x) . | . . 1 1 Largest Inventory Capacity 15 | 8 15 15 15 Average Capacity 10 | 7 12 15 15 Most Carried 15 | 8 13 14 15 Average Carried 7 | 4 8 13 14 Final Capacity 15 | 8 15 15 15 Final Carried 15 | 8 13 14 15 Class Distribution -------------------- 100% | Mutant Dominant Class ---------------- Mutant | -10/Materials Mutant | -10/Mines Mutant | -9/Materials Resources | -11 -10 -10 -9 ----------- Run | Yrd Mat Min Mat Matter Collected 590 | 290 230 10 60 Remotely . | . . . . Salvage Created 933 | 106 635 40 152 Parts 48 | 10 29 1 8 Haulers Intercepted 2 | . 2 . . Recyclers Shooed . | . . . . Parts Field Recycled . | . . . . Retrieved Matter . | . . . . Parts Self-Destructed . | . . . . Prevented . | . . . . Kills | -11 -10 -10 -9 ------- Run | Yrd Mat Min Mat Combat Hostiles Destroyed 17 | 1 12 1 3 Guns 13 | 1 10 1 1 Cannons 3 | . 2 . 1 Classes Destroyed 7 | 3 3 . 1 Worker 1 | 1 . . . Tunneler 3 | 3 . . . Hauler 2 | . 2 . . Operator 1 | . 1 . . Grunt 15 | . 12 1 2 Sentry 1 | . . . 1 Demolisher 1 | 1 . . . Best Kill Streak 3 | 1 3 1 2 Combat Bots Only 3 | 1 3 1 2 Max Kills in Single Turn 1 | 1 1 1 1 Gunslinging . | . . . . Exploded . | . . . . Melee . | . . . . Uniques/NPCs Destroyed . | . . . . Combat | -11 -10 -10 -9 -------- Run | Yrd Mat Min Mat Hostile Shots Fired 103 | 6 42 20 35 Missed 30 | . 10 7 13 Damage Taken 954 | 202 383 112 257 Core 260 | 62 111 23 64 Absorbed by Shields 82 | . 18 44 20 Core Remaining (%) 48 | 75 . 21 . Volleys Fired 82 | 20 51 1 10 Largest 2 | 2 2 2 2 Hottest 116 | 70 116 116 116 Shots Fired 158 | 40 96 2 20 Gun 116 | 40 65 1 10 Cannon 42 | . 31 1 10 Launcher . | . . . . Special . | . . . . Kinetic 40 | 20 20 . . Thermal 118 | 20 76 2 20 Explosive . | . . . . Electromagnetic . | . . . . Robot Hit Streak 13 | 9 11 2 13 Robot Miss Streak 3 | 3 3 . 3 Penetration Max . | . . . . Secondary Targets 1 | 1 . . . Max Gunslinging Chain 1 | 1 . . . Shots Hit Robots 113 | 29 67 1 16 Core Hits 43 | 11 26 1 5 Critical Kills . | . . . . Critical Parts Destroyed . | . . . . Critical Strikes 5 | 1 3 1 . Burn 5 | 1 3 1 . Melee Attacks . | . . . . Impact . | . . . . Slashing . | . . . . Piercing . | . . . . Sneak Attacks . | . . . . Combat Hostiles . | . . . . Follow-up Attacks . | . . . . Damage Inflicted 1515 | 306 938 16 255 Guns 1094 | 306 655 16 117 Cannons 421 | . 283 . 138 Explosions . | . . . . Melee . | . . . . Ramming . | . . . . Kinetic 245 | 116 129 . . Thermal 1270 | 190 809 16 255 Explosive . | . . . . Electromagnetic . | . . . . Impact . | . . . . Slashing . | . . . . Piercing . | . . . . Highest Corruption . | . . . . Average Corruption . | . . . . Corruption Purged . | . . . . Corruption Blocked . | . . . . Overload Shots . | . . . . Overflow Damage . | . . . . Projectiles . | . . . . Explosions . | . . . . Melee . | . . . . Knockbacks . | . . . . Impact . | . . . . Kinetic . | . . . . Secondary . | . . . . Self-Inflicted Damage . | . . . . Shots . | . . . . Rammed . | . . . . Targets Rammed . | . . . . Kicked . | . . . . Crushed . | . . . . Highest Temperature 249 | 70 249 39 9 Average Temperature 66 | 28 82 23 3 Received Heat Transfer 370 | . 233 62 75 Effects 2 | . 2 . . Interference 2 | . 2 . . Siege Activations . | . . . . Robots Corrupted . | . . . . Combat Hostiles . | . . . . Parts Fried . | . . . . Impact Corruptions . | . . . . Robots Melted 1 | . . . 1 Combat Hostiles 1 | . . . 1 Parts Melted 6 | . 5 . 1 Heat Transferred 3515 | 629 2183 111 592 Parts Sabotaged . | . . . . Parts Stolen . | . . . . Parts Stripped . | . . . . Power Chain Reactions . | . . . . Alert | -11 -10 -10 -9 ------- Run | Yrd Mat Min Mat Peak Influence 266 | 25 266 157 168 Initial 72 | . 16 72 61 Average 58 | 4 129 111 113 Maximum Alert Level 1 | . 1 . . Low Security (%) 94 | 100 80 100 100 Level 1 5 | . 19 . . Level 2 . | . . . . Level 3 . | . . . . Level 4 . | . . . . Level 5 . | . . . . High Security . | . . . . Max Security . | . . . . Squads Dispatched 5 | . 3 . 2 Investigation 3 | . 2 . 1 Extermination . | . . . . Reinforcement 2 | . 1 . 1 Assault . | . . . . Garrison . | . . . . Intercept . | . . . . Searches Triggered . | . . . . Construction Impeded . | . . . . Haulers Reinforced . | . . . . Active Scanning Responses . | . . . . Cargo Convoy Interrupts . | . . . . Stealth | -11 -10 -10 -9 --------- Run | Yrd Mat Min Mat Distress Signals 1 | . . 1 . Communications Jammed . | . . . . Distress Signals . | . . . . Times Spotted 37 | 2 18 8 9 Peak Tracking Total 7 | 2 3 4 7 Tactical Retreats 2 | . . 2 . Traps | -11 -10 -10 -9 ------- Run | Yrd Mat Min Mat Traps Triggered . | . . . . Indirectly . | . . . . Trap Hack Attempts . | . . . . Triggered . | . . . . Disarmed . | . . . . Reprogrammed . | . . . . Reused . | . . . . Traps Extracted . | . . . . Installed . | . . . . Triggered . | . . . . Machines | -11 -10 -10 -9 ---------- Run | Yrd Mat Min Mat Machines Disabled 1 | . 1 . . Max in Single Turn 1 | . 1 . . Machines Repaired . | . . . . Machines Dismantled . | . . . . Machines Sabotaged . | . . . . Overloaded Fab Kills . | . . . . Hacking | -11 -10 -10 -9 --------- Run | Yrd Mat Min Mat Machines Accessed 7 | . 6 . 1 Terminals 5 | . 4 . 1 Fabricators . | . . . . Repair Stations 1 | . 1 . . Recycling Units 1 | . 1 . . Scanalyzers . | . . . . Garrison Access . | . . . . Total Hacks 27 | . 23 . 4 Successful 12 | . 11 . 1 Failed 14 | . 11 . 3 Catastrophic 4 | . 4 . . Database Lockouts 1 | . 1 . . Manual 23 | . 19 . 4 Terminals 23 | . 19 . 4 Fabricators . | . . . . Repair Stations 1 | . 1 . . Recycling Units 3 | . 3 . . Scanalyzers . | . . . . Garrison Access . | . . . . Terminal Hacks 7 | . 6 . 1 Robot Analysis 2 | . 1 . 1 Prototype ID Bank 2 | . 2 . . Locate Traps 2 | . 2 . . Hauler Manifests 1 | . 1 . . Fabricator Hacks . | . . . . Repair Station Hacks . | . . . . Recycling Unit Hacks 1 | . 1 . . Report Inventory 1 | . 1 . . Scanalyzer . | . . . . Garrison Access Hacks . | . . . . Unauthorized Hacks 4 | . 4 . . Terminals 3 | . 3 . . Botnet 2 | . 2 . . Disrupt 1 | . 1 . . Fabricators . | . . . . Repair Stations 1 | . 1 . . Mechanics 1 | . 1 . . Recycling Units . | . . . . Scanalyzers . | . . . . Garrison Access . | . . . . Data Cores Recovered . | . . . . Used . | . . . . Hacking Detections 6 | . 5 . 1 Full Trace Events 6 | . 5 . 1 Feedback Events . | . . . . Feedback Blocked . | . . . . Robot Schematics Acquired . | . . . . Robots Built . | . . . . Authchips . | . . . . Time . | . . . . Total Robot Build Rating . | . . . . Part Schematics Acquired . | . . . . Parts Built . | . . . . Authchips . | . . . . Time . | . . . . Total Part Build Rating . | . . . . Parts Repaired . | . . . . Time . | . . . . Parts Recycled . | . . . . Recycled Matter . | . . . . Retrieved Matter . | . . . . Retrieved Components . | . . . . Parts Scanalyzed . | . . . . Part Schematics Acquired . | . . . . Parts Damaged . | . . . . Bothacking | -11 -10 -10 -9 ------------ Run | Yrd Mat Min Mat Used RIF Installer . | . . . . Robots Hacked . | . . . . Non-combat . | . . . . Combat . | . . . . Robot Hacks Applied . | . . . . Relay Couplers Released . | . . . . Fabnet Peak Effective % . | . . . . Robots Rewired . | . . . . Allies Hacked . | . . . . Hacks Repelled . | . . . . Allies | -11 -10 -10 -9 -------- Run | Yrd Mat Min Mat Total Allies . | . . . . Largest Group . | . . . . Highest-Rated Group . | . . . . Highest-Rated Ally . | . . . . Total Orders . | . . . . Ally Attacks . | . . . . Total Damage . | . . . . Kills . | . . . . Allies Corrupted . | . . . . Allies Melted . | . . . . Intel | -11 -10 -10 -9 ------- Run | Yrd Mat Min Mat Robot Analysis Total 2 | . 1 . 1 Derelict Logs Recovered 1 | . . 1 . Drone Launches . | . . . . Drone Recoveries . | . . . . Exploration | -11 -10 -10 -9 ------------- Run | Yrd Mat Min Mat Turns Passed 2175 | 1185 661 221 108 Spaces Moved 1071 | 291 493 216 71 Core 5 | 5 . . . Treads . | . . . . Legs . | . . . . Wheels 1066 | 286 493 216 71 Hover . | . . . . Flight . | . . . . Fastest Speed 50 | 50 80 95 95 Average Speed 88 | 79 89 95 96 Slowest Speed 125 | 80 95 125 125 Overloaded Moves . | . . . . Propulsion Burnouts . | . . . . Robots Hopped . | . . . . Cave-ins Triggered . | . . . . Exploration Rate (%) 34 | 29 61 38 9 Regions Visited 3 Branch Regions 1 Pre-discovered Areas 1 | . . 1 . Known Exits Taken . | . . . . Unknown Exits Taken 3 | 1 1 1 . Scrap Searched 1 | . . 1 . Spaces Dug . | . . . . Terrain Destroyed . | . . . . Melee . | . . . . Projectile . | . . . . AOE . | . . . . Terrain Rammed . | . . . . Walls Destroyed . | . . . . Machines Disabled . | . . . . Actions | -11 -10 -10 -9 --------- Run | Yrd Mat Min Mat Total 2145 | 1205 623 228 89 Wait 927 | 879 38 10 . Move 1068 | 290 492 215 71 Hop . | . . . . Pick Up 28 | 9 16 1 2 Fast Attach 10 | 6 3 1 . Attach 7 | 1 3 . 3 Detach . | . . . . Swap 9 | . 6 . 3 Drop 14 | . 14 . . Fire 82 | 20 51 1 10 Melee . | . . . . Ram . | . . . . Kick . | . . . . Crush . | . . . . Escape Stasis . | . . . . Rewire . | . . . . Trap . | . . . . Miscellaneous . | . . . . Route ------- -11/Scrapyard -10/Materials (discovered 2 exits: *Mat / [*Min]) -10/Mines -9/Materials History --------- Turn | Location | Event 14 | -11/Scrapyard | Discovered new exit (range 16) 1148 | -11/Scrapyard | Assembled infested the area 1186 | -11/Scrapyard | Entered Materials 1187 | -10/Materials | Build established: Mutant 1243 | -10/Materials | Central database locked down 1381 | -10/Materials | Core integrity fell below 50% 1493 | -10/Materials | Discovered new exit (range 9) 1750 | -10/Materials | Discovered new exit (range 14) 1847 | -10/Materials | Entered Mines 1928 | -10/Mines | Assembled infested the area 1933 | -10/Mines | Assisted by a Guerilla fighting off Assembled 1933 | -10/Mines | Found a damaged Exp. Sensor Array with a note attached 1961 | -10/Mines | Found Prototype Device 2015 | -10/Mines | Learned location of Storage (-7) 2059 | -10/Mines | Discovered new exit (range 10) 2068 | -10/Mines | Entered Materials 2068 | -9/Materials | Evolved 2 slots: Utility x2 2068 | -9/Materials | Identified Exp. Sensor Array 2176 | -9/Materials | Self-destructed Last Messages --------------- 02124_ G-34 Mercenary destroyed. 02126_ ALERT: Hostiles spotted, dispatching reinforcements to Terminal M010. 02129_ Shield Generator destroyed. 02139_ G-47 Trooper destroyed. 02150_ Connecting with Terminal... 02150_ Current location identified: Materials >>Analysis(Y-45 Defender) Downloading analysis... Y-45 Defender Tier: 2 Y-series armored sentries are equipped with a mix of thermal and kinetic weaponry. The Y-45 guards important locations and vital machinery, and remains at its station unless they identify a hostile robot or are alerted to the presence of one nearby. 02150_ ALERT: Suspicious activity at Terminal M008. Dispatching Investigation squad. 02161_ Acquired 20 matter. 02172_ Wheel destroyed. 02172_ Ion Engine destroyed. Map ----- +----------------------------------------------------+ | ?????????????????????????????????????????????????? | | ?????????????????????????????????????????????????? | | ?????????????????????????????????????????????????? | | ?????????????????????????????????????????????????? | | ?????????????????????????????????????????????????? | | ?????????????????????????????????????????????????? | | ?????????????????????????????????????????????????? | | ?????????????????????????????????????????????????? | | ?????????????????????????????????????????????????? | | ?????????????????????????????????????????????????? | | ???????????????#######???????????????????????????? | | ???????????????# ???????????????????????????? | | ???????????????# !!! ?#######+######+###???????? | | ?????????? ##### !! ?# ??????? | | ??????????? / !! # % ??????? | | ???????????????# # = ??????? | | ???????????????# """ / =########?????????????? | | ???????????????# """ #g %#????????????????????? | | ???????????????? """ # s #############????????? | | ???????????????? ?#s # "T" = #????????? | | ?????????????????+#####?# s # #????????? | | ????????????????????????# # #????????? | | ????????????????????????# Y# """ """ #???????? | | ????????????????????????# + """"""""" ##???????? | | ????????????????????????# # """"" " ??????????? | | ????????????????????????#@ # ????????????? | | ???????????????????????## ##########????#######? | | ???????????????????????# ############## #? | | ???????????????????????# * #? | | ???????????????????????# =%= #? | | ???????????????????????# #? | | ???????????????? ############## #? | | ??????????????# ###########????????????## ### | | ???????????????????????????????????????????# # | | ???????????????????????????????????????????# # | | ???????????????????????????????????????????# + | | ???????????????????????????????????????????# # | | ???????????????????????????????????????????# # | | ???????????????????????????????????????????# # | | ???????????????????????????????????????????##### | | ???????????????????????????????????????????????# | | ???????????????????????????????????????????????# | | ???????????????????????????????????????????????### | | ?????????????????????????????????????????????????? | | ?????????????????????????????????????????????????? | | ?????????????????????????????????????????????????? | | ?????????????????????????????????????????????????? | | ?????????????????????????????????????????????????? | | ?????????????????????????????????????????????????? | | ?????????????????????????????????????????????????? | +----------------------------------------------------+ Best States ------------- Heat Dissipation 42 Energy Generation 10 Energy Capacity 250 Matter Stores 300 Matter Capacity 300 Sight Range 16 Terrain Scan Density 10 Armor Coverage 225 Evasion (%) 44 Targeting Accuracy 5 Item Schematics ----------------- None Robot Schematics ------------------ None Fabricated ------------ Nothing Alien Tech Used ----------------- None Achievements -------------- Curiosity Killed The Cat Challenges ------------ None Game ------ Seed BlastRecyclingTorch Manual? 0 Play Time 00:26:19 Cumulative 77.4 hours Start 2024.04.13 @ 19:13:05 End 2024.04.13 @ 19:48:13 Sessions 1 Manual Loads 0 Difficulty Rogue Special Mode Halloween2020/ForbiddenLore Game No. 33 Rogue 32 Adventurer 1 Explorer 0 Win Type - Total 2 Types 2/0/0/0/0/0/0/0/0 Lore% 47 Gallery% 38 Achievement% 31 Wizard Run 0 Options --------- Layout 0 ASCII 0 Keyboard 1 Movement Vi Keybinds 0 Fullscreen 2 Font 18/Smallcaps Map View 76x50 Zoom Use 0% Tactical HUD 1 Map Filters NONE Filters NONE Steam 1 RUN: fe4efe74-8779-4df0-b765-9026fb24180e